fUSD/lending_fUSD_20251109
["ID","MTS","AMOUNT","RATE_DAILY","PERIOD"]
[393450101,1762672241576,-800.0,0.00021918,4]
[393450102,1762672241586,-800.0,0.00021918,4]
[393450103,1762672241595,-800.0,0.00021918,4]
[393450104,1762672241605,-800.0,0.00021918,4]
[393450105,1762672241615,-800.0,0.00021918,4]
[393450106,1762672241625,-800.0,0.00021918,4]
[393450107,1762672241635,-800.0,0.00021918,4]
[393450108,1762672241645,-800.0,0.00021918,4]
[393450109,1762672241654,-800.0,0.00021918,4]
[393450110,1762672241664,-800.0,0.00021918,4]
[393450111,1762672241674,-800.0,0.00021918,4]
[393450112,1762672241683,-800.0,0.00021918,4]
[393450113,1762672241694,-800.0,0.00021918,4]
[393450114,1762672241708,-800.0,0.00021918,4]
[393450115,1762672241717,-800.0,0.00021918,4]
[393450116,1762672241727,-800.0,0.00021918,4]
[393450117,1762672241736,-800.0,0.00021918,4]
[393450118,1762672241747,-800.0,0.00021918,4]
[393450119,1762672241756,-800.0,0.00021918,4]
[393450120,1762672241766,-800.0,0.00021918,4]
[393450121,1762672241777,-500.0,0.00021918,2]
[393450122,1762672241787,-150.0,0.00021918,2]
[393450123,1762672241796,-1154.65052907,0.00022008,2]
[393450124,1762672241806,-438.53661058,0.00022055,2]
[393450125,1762672241815,-1689.36514313,0.00022089,2]
[393450126,1762672241824,-1273.0,0.00022092,2]
[393450127,1762672241833,-813.0,0.00022092,2]
[393450128,1762672241843,-1189.0,0.00022092,2]
[393450129,1762672241853,-906.0,0.00022092,2]
[393450130,1762672241862,-6478.0,0.00022092,2]
[393450131,1762672241872,-6661.0,0.00022092,2]
[393450132,1762672241882,-559.0,0.00022092,2]
[393450133,1762672241892,-150.0,0.00022108,2]
[393450134,1762672241901,-150.0,0.00022108,2]
[393450135,1762672241911,-150.0,0.00022108,2]
[393450136,1762672241921,-150.0,0.00022108,2]
[393450137,1762672241931,-150.0,0.00022108,2]
[393450138,1762672241940,-150.0,0.00022108,2]
[393450139,1762672241950,-150.0,0.00022108,2]
[393450140,1762672241959,-608.0,0.00022108,2]
[393450141,1762672241969,-1316.0,0.00022108,2]
[393450142,1762672241979,-3425.0,0.00022108,2]
[393450143,1762672241989,-574.0,0.00022108,2]
[393450144,1762672241998,-820.0,0.00022108,2]
[393450145,1762672242008,-1596.0,0.00022108,2]
[393450146,1762672242018,-21914.54792423,0.00022231,2]
[393450147,1762672242027,-3378.30064858,0.000223,2]
[393450148,1762672242037,-23736.97879509,0.00022365,2]
[393450149,1762672242046,-200.0,0.000228,2]
[393450150,1762672242056,-162.61440694,0.00022912,2]
[393450151,1762672242066,-174.226309,0.00023,2]
[393450152,1762672242075,-151.939036,0.00023,2]
[393450153,1762672242084,-157.89045,0.00023,2]
[393450154,1762672242094,-400.0,0.00023,2]
[393450155,1762672242103,-500.0,0.00023288,2]
[393450156,1762672242113,-231.85,0.00023334,2]
[393450157,1762672242122,-1152.0,0.00023419,2]
[393450158,1762672242131,-1152.0,0.00023419,2]
[393450159,1762672242141,-500.0,0.00023425,2]
[393450160,1762672242150,-357.82697939,0.00023562,2]
[393450161,1762672242161,-4609.0,0.00023889,2]
[393450162,1762672242170,-500.0,0.000239,7]
[393450163,1762672242180,-500.0,0.000239,7]
[393450164,1762672242189,-500.0,0.000239,7]
[393450165,1762672242198,-500.0,0.000239,7]
[393450166,1762672242208,-500.0,0.000239,7]
[393450167,1762672242217,-500.0,0.000239,7]
[393450168,1762672242226,-500.0,0.000239,7]
[393450169,1762672242236,-500.0,0.000239,7]
[393450170,1762672242245,-500.0,0.000239,7]
[393450171,1762672242255,-500.0,0.000239,7]
[393450172,1762672242264,-500.0,0.000239,7]
[393450173,1762672242273,-500.0,0.000239,7]
[393450174,1762672242282,-500.0,0.000239,7]
[393450175,1762672242291,-500.0,0.000239,7]
[393450176,1762672242300,-500.0,0.000239,7]
[393450177,1762672242310,-500.0,0.000239,7]
[393450178,1762672242319,-500.0,0.000239,7]
[393450179,1762672242328,-500.0,0.000239,7]
[393450180,1762672242338,-500.0,0.000239,7]
[393450181,1762672242347,-500.0,0.000239,7]
[393450182,1762672242356,-500.0,0.000239,7]
[393450183,1762672242365,-500.0,0.000239,7]
[393450184,1762672242374,-500.0,0.000239,7]
[393450185,1762672242384,-500.0,0.000239,7]
[393450186,1762672242394,-500.0,0.000239,7]
[393450187,1762672242404,-500.0,0.000239,7]
[393450188,1762672242414,-500.0,0.000239,7]
[393450189,1762672242423,-500.0,0.000239,7]
[393450190,1762672242432,-500.0,0.000239,7]
[393450191,1762672242442,-500.0,0.000239,7]
[393450192,1762672242452,-500.0,0.000239,7]
[393450193,1762672242461,-500.0,0.000239,7]
[393450194,1762672242471,-500.0,0.000239,7]
[393450195,1762672242481,-500.0,0.000239,7]
[393450196,1762672242493,-500.0,0.000239,7]
[393450197,1762672242502,-500.0,0.000239,7]
[393450198,1762672242511,-500.0,0.000239,7]
[393450199,1762672242521,-500.0,0.000239,7]
[393450200,1762672242530,-500.0,0.000239,7]
[393450201,1762672242540,-500.0,0.000239,7]
[393450202,1762672242550,-336.24,0.000239,7]
[393450203,1762672242559,-500.0,0.000239,7]
[393450204,1762672242570,-500.0,0.000239,7]
[393450205,1762672242581,-500.0,0.000239,7]
[393450206,1762672242591,-500.0,0.000239,7]
[393450207,1762672242602,-500.0,0.000239,7]
[393450208,1762672242611,-500.0,0.000239,7]
[393450209,1762672242621,-500.0,0.000239,7]
[393450210,1762672242630,-500.0,0.000239,7]
[393450211,1762672242640,-500.0,0.000239,7]
[393450212,1762672242649,-500.0,0.000239,7]
[393450213,1762672242659,-500.0,0.000239,7]
[393450214,1762672242668,-500.0,0.000239,7]
[393450215,1762672242678,-500.0,0.000239,7]
[393450216,1762672242688,-170.36,0.000239,7]
[393450217,1762672242698,-1100.0,0.000239,8]
[393450218,1762672242711,-165.59,0.00023904,2]
[393450219,1762672242721,-698.81,0.00023937,2]
[393450220,1762672242731,-477.03,0.00023937,2]
[393450221,1762672242743,-477.12,0.00023937,2]
[393450222,1762672242752,-985.54,0.00023937,2]
[393450223,1762672242762,-1396.25,0.00023937,2]
[393450224,1762672242772,-698.81,0.00023937,2]
[393450225,1762672242784,-711.3,0.00023937,2]
[393450226,1762672242793,-698.81,0.00023937,2]
[393450227,1762672242803,-1495.69,0.00023937,2]
[393450228,1762672242813,-419.37,0.00023938,2]
[393450229,1762672242822,-318.56503143,0.00024016,2]
[393450230,1762672242832,-21914.54792423,0.00024143,2]
[393450231,1762672242841,-221.92525619,0.00024305,2]
[393450232,1762672242851,-23736.97879509,0.00024321,2]
[393450233,1762672242860,-478.20968403,0.00024428,7]
[393450234,1762672242871,-150.0,0.00024475,2]
[393450235,1762672242880,-1000.0,0.000245,2]
[393450236,1762672242890,-150.0,0.00024545,2]
[393450237,1762672242900,-279.46314,0.0002455,2]
[393450238,1762672242909,-151.53,0.00024559,2]
[393450239,1762672242919,-714.7043042,0.0002456,2]
[393450240,1762672242928,-221.92525619,0.00024568,2]
[393450241,1762672242937,-317002.7147849,0.00024569,2]
[393450242,1762672242947,-150.0,0.00024581,2]
[393450243,1762672242956,-279.46314,0.0002462,2]
[393450244,1762672242966,-3098.0,0.00024625,2]
[393450245,1762672242975,-2647.6086906,0.00024627,2]
[393450246,1762672242985,-1416.18,0.00024658,2]
[393450247,1762672242995,-415.8,0.0002467,2]
[393450249,1762672243005,-303.18,0.00024694,2]
[393450250,1762672243015,-1000.0,0.00024728,2]
[393450251,1762672243025,-150.0,0.00024739,2]
[393450253,1762672243035,-2000.0,0.00024776,2]
[393450254,1762672243045,-151.0,0.00024797,7]
[393450255,1762672243056,-478.20968403,0.000248,3]
[393450256,1762672243065,-174.226309,0.000248,3]
[393450257,1762672243076,-150.0,0.000248,2]
[393450258,1762672243086,-1293.03134316,0.000248,2]
[393450259,1762672243095,-1242.0,0.000248,2]
[393450260,1762672243105,-152.0,0.000248,2]
[393450261,1762672243114,-1242.0,0.000248,2]
[393450262,1762672243124,-152.0,0.000248,2]
[393450263,1762672243133,-1242.0,0.000248,2]
[393450264,1762672243142,-152.0,0.000248,2]
[393450265,1762672243152,-1242.0,0.000248,2]
[393450266,1762672243162,-152.0,0.000248,2]
[393450267,1762672243171,-1242.0,0.000248,2]
[393450268,1762672243181,-155.0,0.000248,2]
[393450269,1762672243190,-152.0,0.000248,2]
[393450270,1762672243200,-152.0,0.000248,2]
[393450271,1762672243210,-1242.0,0.000248,2]
[393450272,1762672243219,-155.65988123,0.000248,2]
[393450273,1762672243229,-152.0,0.000248,2]
[393450274,1762672243240,-152.0,0.000248,2]
[393450275,1762672243250,-1242.0,0.000248,2]
[393450276,1762672243260,-284.7786349,0.000248,2]
[393450277,1762672243270,-152.0,0.000248,2]
[393450278,1762672243279,-1242.0,0.000248,2]
[393450279,1762672243288,-152.0,0.000248,2]
[393450280,1762672243298,-1242.0,0.000248,2]
[393450281,1762672243307,-152.0,0.000248,2]
[393450283,1762672243318,-1242.0,0.000248,2]
[393450285,1762672243327,-152.0,0.000248,2]
[393450286,1762672243337,-1242.0,0.000248,2]
[393450287,1762672243347,-151.0,0.000248,2]
[393450289,1762672243356,-827.0,0.000248,2]
[393450290,1762672243366,-152.0,0.000248,2]
[393450291,1762672243375,-1242.0,0.000248,2]
[393450292,1762672243385,-151.0,0.000248,2]
[393450293,1762672243395,-152.0,0.000248,2]
[393450294,1762672243404,-1242.0,0.000248,2]
[393450295,1762672243414,-827.0,0.000248,2]
[393450296,1762672243424,-151.0,0.000248,2]
[393450297,1762672243434,-152.0,0.000248,2]
[393450298,1762672243444,-1242.0,0.000248,2]
[393450299,1762672243453,-827.0,0.000248,2]
[393450300,1762672243463,-151.0,0.000248,2]
[393450301,1762672243473,-152.0,0.000248,2]
[393450302,1762672243484,-1242.0,0.000248,2]
[393450303,1762672243494,-827.0,0.000248,2]
[393450304,1762672243503,-151.0,0.000248,2]
[393450305,1762672243513,-152.0,0.000248,2]
[393450306,1762672243522,-151.0,0.000248,2]
[393450307,1762672243532,-1242.0,0.000248,2]
[393450308,1762672243541,-827.0,0.000248,2]
[393450309,1762672243552,-290.0009825,0.000248,2]
[393450310,1762672243562,-151.0,0.000248,2]
[393450311,1762672243572,-1242.0,0.000248,2]
[393450312,1762672243582,-827.0,0.000248,2]
[393450313,1762672243593,-151.0,0.000248,2]
[393450314,1762672243603,-1242.0,0.000248,2]
[393450315,1762672243614,-827.0,0.000248,2]
[393450316,1762672243623,-151.0,0.000248,2]
[393450317,1762672243633,-1242.0,0.000248,2]
[393450318,1762672243643,-151.0,0.000248,2]
[393450319,1762672243652,-1242.0,0.000248,2]
[393450320,1762672243662,-768.8328181,0.000248,2]
[393450321,1762672243671,-1242.0,0.000248,2]
[393450322,1762672243681,-151.0,0.000248,2]
[393450323,1762672243691,-1242.0,0.000248,2]
[393450324,1762672243702,-151.0,0.000248,2]
[393450325,1762672243712,-151.0,0.000248,2]
[393450326,1762672243722,-540.24567319,0.000248,2]
[393450327,1762672243732,-151.0,0.000248,2]
[393450328,1762672243742,-151.0,0.000248,2]
[393450329,1762672243754,-151.0,0.000248,2]
[393450330,1762672243764,-151.0,0.000248,2]
[393450331,1762672243775,-151.0,0.000248,2]
[393450332,1762672243786,-151.0,0.000248,2]
[393450333,1762672243796,-151.0,0.000248,2]
[393450334,1762672243806,-151.0,0.000248,2]
[393450335,1762672243816,-151.0,0.000248,2]
[393450336,1762672243825,-151.0,0.000248,2]
[393450337,1762672243835,-151.0,0.000248,2]
[393450338,1762672243844,-151.0,0.000248,2]
[393450340,1762672243854,-151.0,0.000248,2]
[393450342,1762672243863,-151.0,0.000248,2]
[393450343,1762672243872,-151.0,0.000248,2]
[393450344,1762672243882,-151.0,0.000248,2]
[393450345,1762672243891,-151.0,0.000248,2]
[393450346,1762672243901,-151.0,0.000248,2]
[393450347,1762672243911,-151.0,0.000248,2]
[393450348,1762672243921,-151.0,0.000248,2]
[393450349,1762672243930,-151.0,0.000248,2]
[393450350,1762672243939,-151.0,0.000248,2]
[393450351,1762672243949,-151.0,0.000248,2]
[393450352,1762672243959,-151.0,0.000248,2]
[393450353,1762672243968,-151.0,0.000248,2]
[393450354,1762672243978,-151.0,0.000248,2]
[393450355,1762672243990,-151.0,0.000248,2]
[393450356,1762672244000,-151.0,0.000248,2]
[393450357,1762672244011,-151.0,0.000248,2]
[393450358,1762672244021,-151.0,0.000248,2]
[393450359,1762672244031,-194.6588664,0.000248,2]
[393450360,1762672244040,-394.0,0.000248,2]
[393450361,1762672244050,-150.0,0.000248,2]
[393450362,1762672244060,-3377.78169785,0.000248,2]
[393450363,1762672244070,-150.0,0.000248,2]
[393450364,1762672244079,-616.87333,0.000248,2]
[393450365,1762672244090,-2375.20890159,0.000248,2]
[393450366,1762672244099,-184.12,0.000248,11]
[393450367,1762672244109,-605185.469466,0.000248,3]
[393450368,1762672244118,-200.0,0.000248,2]
[393450369,1762672244128,-166.0,0.000248,2]
[393450370,1762672244250,-166.0,0.000248,2]
[393450371,1762672244261,-166.0,0.000248,2]
[393450372,1762672244271,-166.0,0.000248,2]
[393450373,1762672244280,-166.0,0.000248,2]
[393450374,1762672244290,-166.0,0.000248,2]
[393450375,1762672244300,-253.35888941,0.000248,2]
[393450376,1762672244309,-156.203306,0.00024825,3]
[393450377,1762672244319,-1026.287928,0.00024825,3]
[393450378,1762672244329,-871.131549,0.00024825,3]
[393450379,1762672244338,-354.524418,0.00024825,3]
[393450380,1762672244348,-174.226309,0.00024825,3]
[393450381,1762672244358,-157.89045,0.00024825,3]
[393450382,1762672244367,-1154.65052906,0.00024849,2]
[393450383,1762672244376,-156.203306,0.0002485,3]
[393450384,1762672244386,-1026.287928,0.0002485,3]
[393450385,1762672244395,-871.131549,0.0002485,3]
[393450386,1762672244405,-354.524418,0.0002485,3]
[393450387,1762672244414,-174.226309,0.0002485,3]
[393450388,1762672244424,-157.89045,0.0002485,3]
[393450389,1762672244434,-279.46314,0.0002487,2]
[393450390,1762672244443,-150.0,0.00024873,2]
[393450391,1762672244452,-156.203306,0.00024875,3]
[393450392,1762672244461,-153.743889,0.00024875,3]
[393450393,1762672244470,-1026.287928,0.00024875,3]
[393450394,1762672244479,-871.131549,0.00024875,3]
[393450395,1762672244489,-354.524418,0.00024875,3]
[393450396,1762672244499,-171.04799,0.00024875,3]
[393450397,1762672244508,-174.226309,0.00024875,3]
[393450398,1762672244518,-151.939036,0.00024875,3]
[393450399,1762672244528,-157.89045,0.00024875,3]
[393450400,1762672244538,-174.226312,0.00024875,3]
[393450401,1762672244547,-171.047989,0.00024875,3]
[393450402,1762672244557,-156.203306,0.000249,3]
[393450403,1762672244567,-153.743889,0.000249,3]
[393450404,1762672244576,-1026.287928,0.000249,3]
[393450405,1762672244586,-871.131549,0.000249,3]
[393450406,1762672244595,-354.524418,0.000249,3]
[393450407,1762672244605,-171.04799,0.000249,3]
[393450408,1762672244614,-478.20968403,0.000249,7]
[393450409,1762672244623,-156.203306,0.000249,3]
[393450410,1762672244633,-174.226309,0.000249,3]
[393450411,1762672244643,-151.939036,0.000249,3]
[393450412,1762672244653,-157.89045,0.000249,3]
[393450413,1762672244662,-174.226312,0.000249,3]
[393450414,1762672244672,-177.262211,0.000249,3]
[393450415,1762672244681,-171.047989,0.000249,3]
[393450416,1762672244691,-1600.0,0.000249,9]
[393450417,1762672244704,-612904.837537,0.000249,3]
[393450418,1762672244713,-698.81,0.00024904,2]
[393450419,1762672244723,-698.81,0.00024904,2]
[393450420,1762672244732,-698.95,0.00024904,2]
[393450421,1762672244743,-698.81,0.00024904,2]
[393450422,1762672244752,-954.24,0.00024904,2]
[393450423,1762672244763,-1276.17,0.00024904,2]
[393450424,1762672244772,-616.87333,0.0002493,2]
[393450425,1762672244782,-601.52190673,0.00025,2]
[393450426,1762672244792,-205.07499645,0.00025,2]
[393450427,1762672244801,-151.0,0.00025,2]
[393450428,1762672244811,-1763.77652645,0.00025,2]
[393450429,1762672244820,-4743.89851213,0.00025,3]
[393450430,1762672244830,-360.0,0.00025,2]
[393450431,1762672244841,-3782.80745163,0.00025,2]
[393450432,1762672244850,-3007.56261682,0.00025,2]
[393450433,1762672244860,-7050.49872944,0.00025,2]
[393450434,1762672244869,-1051.4579403,0.00025,2]
[393450435,1762672244878,-165.26060034,0.00025,2]
[393450436,1762672244888,-17072.53185778,0.00025,2]
[393450437,1762672244898,-657.50144186,0.00025,7]
[393450438,1762672244908,-16723.59,0.00025,7]
[393450439,1762672244918,-164.0,0.00025,7]
[393450440,1762672244928,-1116.49,0.00025,2]
[393450441,1762672244938,-152.535,0.00025,2]
[393450442,1762672244947,-169.64122107,0.00025089,7]
[393450443,1762672244956,-1273.0,0.00025092,2]
[393450444,1762672244965,-813.0,0.00025092,2]
[393450445,1762672244975,-1189.0,0.00025092,2]
[393450446,1762672244984,-906.0,0.00025092,2]
[393450447,1762672244994,-6478.0,0.00025092,2]
[393450448,1762672245004,-6332.15118376,0.00025092,2]
[393450449,1762672245193,-247.24191956,0.00018228,2]
[393450450,1762672245202,-262.52808044,0.00019092,2]
[393450451,1762672245213,-424.30919668,0.00019092,2]
[393450452,1762672245247,-1455.16272288,0.00019092,2]
[393450453,1762672245257,-2142.0,0.00022092,2]
[393450454,1762672245267,-328.84881624,0.00025092,2]
[393450455,1762672245276,-125.78462931,0.00025092,2]
[393450456,1762672245288,-433.21537069,0.00025092,2]
[393450457,1762672245298,-79.06265772,0.00025092,2]
[393450458,1762672245907,-1.7e-07,0.00025092,2]
[393450459,1762672246048,-2062.93734211,0.00025092,2]
[393450460,1762672246058,-201.22,0.000251,7]
[393450461,1762672246067,-150.0,0.00025108,2]
[393450462,1762672246077,-150.0,0.00025108,2]
[393450463,1762672246086,-150.0,0.00025108,2]
[393450464,1762672246097,-150.0,0.00025108,2]
[393450465,1762672246106,-150.0,0.00025108,2]
[393450466,1762672246115,-150.0,0.00025108,2]
[393450467,1762672246124,-608.0,0.00025108,2]
[393450468,1762672246134,-1312.34360819,0.00025108,2]
[393450469,1762672246146,-3.65639181,0.00025108,2]
[393450470,1762672246154,-2584.77013696,0.00025108,2]
[393450471,1762672246166,-261.98000005,0.00025108,2]
[393450472,1762672246178,-578.24986299,0.00025108,2]
[393450473,1762672246187,-110.49851661,0.00025108,2]
[393450494,1762672246631,-15425.07,0.00023085,2]
[393450496,1762672246641,-463.50148339,0.00025108,2]
[393450497,1762672246650,-364.67160407,0.00025108,2]
[393450499,1762672246663,-455.32839593,0.00025108,2]
[393450501,1762672246673,-437.07278954,0.00025108,2]
[393450510,1762672312556,500.0,0.00039155,120]
[393450511,1762672312826,500.0,0.00039155,120]
[393450512,1762672313064,500.0,0.00039155,120]
[393450513,1762672313322,500.0,0.00039155,120]
[393450514,1762672313562,500.0,0.00039155,120]
[393450515,1762672313811,500.0,0.00039155,120]
[393450516,1762672314053,500.0,0.00039155,120]
[393450517,1762672314294,500.0,0.00039155,120]
[393450518,1762672314537,500.0,0.00039155,120]
[393450519,1762672314768,500.0,0.00039155,120]
[393450520,1762672315099,500.0,0.00039155,120]
[393450521,1762672315340,500.0,0.00039155,120]
[393450522,1762672315583,500.0,0.00039155,120]
[393450523,1762672315826,500.0,0.00039155,120]
[393450524,1762672316094,500.0,0.00039155,120]
[393450525,1762672316317,627.85,0.00039155,120]
[393450526,1762672327637,238.16328849,0.00039155,120]
[393450527,1762672327821,414.0,0.00039155,120]
[393450528,1762672328077,151.0,0.00039155,120]
[393450529,1762672328644,429.318,0.00039155,120]
[393450530,1762672328702,151.0,0.00039155,120]
[393450531,1762672329100,445.202766,0.00039155,120]
[393450532,1762672329291,151.0,0.00039155,120]
[393450533,1762672329706,461.67526834,0.00039155,120]
[393450534,1762672329927,151.0,0.00039155,120]
[393450535,1762672330421,250.0,0.00039155,120]
[393450536,1762672330538,151.0,0.00039155,120]
[393450537,1762672330943,500.0,0.00039155,120]
[393450538,1762672331011,250.0,0.00039155,120]
[393450539,1762672331228,151.0,0.00039155,120]
[393450540,1762672331550,500.0,0.00039155,120]
[393450541,1762672331634,250.0,0.00039155,120]
[393450542,1762672331834,151.0,0.00039155,120]
[393450543,1762672332161,500.0,0.00039155,120]
[393450544,1762672332264,250.0,0.00039155,120]
[393450545,1762672332470,151.0,0.00039155,120]
[393450546,1762672332765,500.0,0.00039155,120]
[393450547,1762672332900,250.0,0.00039155,120]
[393450548,1762672333060,151.0,0.00039155,120]
[393450549,1762672333206,500.0,0.00039155,120]
[393450550,1762672333535,250.0,0.00039155,120]
[393450551,1762672333868,151.0,0.00039155,120]
[393450552,1762672333971,500.0,0.00039155,120]
[393450553,1762672334142,250.0,0.00039155,120]
[393450554,1762672334487,151.0,0.00039155,120]
[393450555,1762672334541,500.0,0.00039155,120]
[393450556,1762672334801,250.0,0.00039155,120]
[393450557,1762672335177,500.0,0.00039155,120]
[393450558,1762672335334,449.66065005,0.00039155,120]
[393450559,1762672335410,250.0,0.00039155,120]
[393450560,1762672335795,500.0,0.00039155,120]
[393450561,1762672336052,250.0,0.00039155,120]
[393450562,1762672336429,500.0,0.00039155,120]
[393450563,1762672336697,250.0,0.00039155,120]
[393450564,1762672337208,500.0,0.00039155,120]
[393450565,1762672337840,500.0,0.00039155,120]
[393450566,1762672339010,-155.39013836,0.0001564,2]
[393450567,1762672343719,-344.60986164,0.0001564,2]
[393450568,1762672370010,511.9389,0.00039155,120]
[393450569,1762672374020,-181.0,0.00016,2]
[393450570,1762672375091,500.0,0.00039155,120]
[393450571,1762672375367,530.18,0.00039155,120]
[393450572,1762672384271,500.0,0.00039155,120]
[393450573,1762672384503,500.0,0.00039155,120]
[393450574,1762672384970,500.0,0.00039155,120]
[393450575,1762672385214,500.0,0.00039155,120]
[393450576,1762672385435,500.0,0.00039155,120]
[393450577,1762672385666,260.0,0.00039155,120]
[393450578,1762672403620,970.46,0.00039155,120]
[393450579,1762672492369,500.0,0.00039155,120]
[393450580,1762672492605,607.72402924,0.00039155,120]
[393450581,1762672546667,500.0,0.00039155,120]
[393450582,1762672546936,500.0,0.00039155,120]
[393450583,1762672547263,625.57,0.00039155,120]
[393450584,1762672626315,186.69760597,0.00039155,120]
[393450585,1762672630208,400.50557928,0.00039155,120]
[393450586,1762672758987,-240.69487874,0.00016295,2]
[393450587,1762672759019,-195.0,0.00016299,2]
[393450588,1762672759049,-300.0,0.00016303,2]
[393450589,1762672759078,-153.59182362,0.00016304,2]
[393450590,1762672759188,-8067.84477166,0.00016304,2]
[393450591,1762672759230,-4250.67207908,0.00016304,2]
[393450592,1762672759259,-191.13901893,0.00016304,2]
[393450593,1762672759305,-1116.38780398,0.00016304,2]
[393450594,1762672764915,-10000.01,0.00016304,2]
[393450595,1762672765048,-3125.78947308,0.00016304,2]
[393450596,1762672818246,500.0,0.00039138,120]
[393450597,1762672818476,500.0,0.00039138,120]
[393450598,1762672818721,500.0,0.00039138,120]
[393450599,1762672819002,500.0,0.00039138,120]
[393450600,1762672819226,300.0,0.00039138,120]
[393450601,1762672980862,500.0,0.00039138,120]
[393450602,1762672981100,500.0,0.00039138,120]
[393450603,1762672981348,500.0,0.00039138,120]
[393450604,1762672981608,500.0,0.00039138,120]
[393450605,1762672981855,300.0,0.00039138,120]
[393450607,1762673161201,10000.01,8e-05,2]
[393450608,1762673161224,3749.23001647,8e-05,2]
[393450609,1762673224044,-357.00364292,0.000153,2]
[393450610,1762673225781,-642.99635708,0.000153,2]
[393450611,1762673226817,-193.0,0.00015819,2]
[393450612,1762673226840,-174.77168356,0.00016137,2]
[393450613,1762673227213,35.06150898,0.00015819,2]
[393450614,1762673230365,-159.93849102,0.00015819,2]
[393450615,1762673230387,-75.24462739,0.00015819,2]
[393450616,1762673232066,205.0,9.8e-05,2]
[393450617,1762673234163,-174.75537261,0.00015819,2]
[393450618,1762673234186,-100.05432956,0.00016137,2]
[393450619,1762673235541,5300.8174676,0.0001305,2]
[393450620,1762673235967,257.78469127,0.000101,2]
[393450621,1762673239082,-94.94567044,0.00016137,2]
[393450622,1762673239106,-148.18472049,0.00016137,2]
[393450624,1762673265557,2194.61027828,0.00013,2]
[393450625,1762673266339,-269.46,0.00015974,2]
[393450626,1762673271207,-439.44,0.00015974,2]
[393450627,1762673271236,-101.81527951,0.00016137,2]
[393450628,1762673271265,-1053.0202,0.00016296,2]
[393450629,1762673271294,-1200.0,0.00016336,2]
[393450630,1762673271323,-300.0,0.00016337,2]
[393450631,1762673271353,-300.0,0.00016337,2]
[393450632,1762673271383,-1200.0,0.00016337,2]
[393450633,1762673271411,-261.45904098,0.00016337,2]
[393450634,1762673271583,-288.54095902,0.00016337,2]
[393450635,1762673271611,-300.0,0.00016338,2]
[393450636,1762673271641,-1090.72386166,0.00016338,2]
[393450637,1762673271670,-235.73812326,0.00016338,2]
[393450638,1762673272012,-4751.11261752,0.00016338,2]
[393450639,1762673272046,-10000.01,0.00016338,2]
[393450640,1762673272079,752.75,0.00016386,3]